fUSD/lending_fUSD_20240301
["ID","MTS","AMOUNT","RATE_DAILY","PERIOD"]
[315930747,1709289043590,-500.0,0.00021917,2]
[315930748,1709289043599,-568.54,0.00021917,2]
[315930749,1709289043609,-500.0,0.00021917,2]
[315930750,1709289043618,-500.0,0.00021917,2]
[315930751,1709289043629,-500.0,0.00021917,2]
[315930752,1709289043639,-500.0,0.00021917,2]
[315930753,1709289043648,-568.43,0.00021917,2]
[315930754,1709289043657,-500.0,0.00021917,2]
[315930755,1709289043667,-500.0,0.00021917,2]
[315930756,1709289043677,-500.0,0.00021917,2]
[315930757,1709289043686,-500.0,0.00021917,2]
[315930758,1709289043696,-675.04,0.00021917,2]
[315930759,1709289043705,-500.0,0.00021917,2]
[315930760,1709289043714,-153.88,0.00021917,2]
[315930761,1709289043725,-500.0,0.00021917,2]
[315930762,1709289043735,-500.0,0.00021917,2]
[315930763,1709289043774,-500.0,0.00021917,2]
[315930764,1709289043784,-500.0,0.00021917,2]
[315930765,1709289043794,-500.0,0.00021917,2]
[315930766,1709289043803,-500.0,0.00021917,2]
[315930767,1709289043812,-510.64,0.00021917,2]
[315930768,1709289043821,-500.0,0.00021917,2]
[315930769,1709289043830,-564.27,0.00021917,2]
[315930770,1709289043840,-550.9,0.00021917,2]
[315930771,1709289043851,-549.33383839,0.00021917,2]
[315930772,1709289043861,-500.0,0.00021917,2]
[315930773,1709289043870,-500.0,0.00021917,2]
[315930774,1709289043879,-500.0,0.00021917,2]
[315930775,1709289043888,-838.85,0.00021917,2]
[315930776,1709289043898,-500.0,0.00021917,2]
[315930777,1709289043907,-500.0,0.00021917,2]
[315930778,1709289043917,-500.0,0.00021917,2]
[315930779,1709289043927,-682.31,0.00021917,2]
[315930780,1709289043936,-846.18,0.00021917,2]
[315930781,1709289043945,-615.25,0.00021917,2]
[315930782,1709289043954,-669.48,0.00021917,2]
[315930783,1709289043963,-500.0,0.00021917,2]
[315930784,1709289043972,-500.0,0.00021917,2]
[315930785,1709289043981,-500.0,0.00021917,2]
[315930786,1709289043990,-500.0,0.00021917,2]
[315930787,1709289043999,-547.81,0.00021917,2]
[315930788,1709289044008,-599.62,0.00021917,2]
[315930789,1709289044017,-500.0,0.00021917,2]
[315930790,1709289044027,-500.0,0.00021917,2]
[315930791,1709289044036,-500.0,0.00021917,2]
[315930792,1709289044045,-500.0,0.00021917,2]
[315930793,1709289044054,-855.86,0.00021917,2]
[315930794,1709289044063,-500.0,0.00021917,2]
[315930795,1709289044072,-500.0,0.00021917,2]
[315930796,1709289044081,-500.0,0.00021917,2]
[315930797,1709289044090,-500.0,0.00021917,2]
[315930798,1709289044100,-500.0,0.00021917,2]
[315930799,1709289044112,-500.0,0.00021917,2]
[315930800,1709289044122,-552.6,0.00021917,2]
[315930801,1709289044131,-500.0,0.00021917,2]
[315930802,1709289044141,-500.0,0.00021917,2]
[315930803,1709289044150,-626.4,0.00021917,2]
[315930804,1709289044159,-500.0,0.00021917,2]
[315930805,1709289044171,-500.0,0.00021917,2]
[315930806,1709289044180,-500.0,0.00021917,2]
[315930807,1709289044189,-500.0,0.00021917,2]
[315930808,1709289044199,-2073.32,0.00021917,2]
[315930809,1709289044208,-500.0,0.00021917,2]
[315930810,1709289044217,-500.0,0.00021917,2]
[315930811,1709289044226,-500.0,0.00021917,2]
[315930812,1709289044235,-500.0,0.00021917,2]
[315930813,1709289044245,-500.0,0.00021917,2]
[315930814,1709289044255,-500.0,0.00021917,2]
[315930815,1709289044265,-500.0,0.00021917,2]
[315930816,1709289044273,-796.04,0.00021917,2]
[315930817,1709289044282,-2216.84,0.00021917,2]
[315930818,1709289044291,-500.0,0.00021917,2]
[315930819,1709289044300,-1903.18,0.00021917,2]
[315930820,1709289044310,-500.0,0.00021917,2]
[315930821,1709289044319,-374.60325206,0.00021917,2]
[315930822,1709289044330,-500.0,0.00021917,2]
[315930823,1709289044339,-1328.48,0.00021917,2]
[315930824,1709289044348,-500.0,0.00021917,2]
[315930825,1709289044358,-1460.46,0.00021917,2]
[315930826,1709289044367,-500.0,0.00021917,2]
[315930827,1709289044376,-1489.78,0.00021917,2]
[315930828,1709289044385,-568.81,0.00021917,2]
[315930829,1709289044394,-500.0,0.00021917,2]
[315930830,1709289044403,-1934.17,0.00021917,2]
[315930831,1709289044412,-500.0,0.00021917,2]
[315930832,1709289044423,-500.0,0.00021917,2]
[315930833,1709289044432,-10662.64,0.00021917,2]
[315930834,1709289044442,-4909.27,0.00021917,2]
[315930835,1709289044450,-932.95,0.00021917,2]
[315930836,1709289044459,-518.61,0.00021917,2]
[315930837,1709289044468,-500.0,0.00021917,2]
[315930838,1709289044477,-1068.13,0.00021917,2]
[315930839,1709289044487,-1406.97,0.00021917,2]
[315930840,1709289044496,-1964.2,0.00021917,2]
[315930841,1709289044506,-1032.5,0.00021917,2]
[315930842,1709289044514,-582.45681738,0.00021917,2]
[315930843,1709289044524,-1367.21,0.00021917,2]
[315930844,1709289044534,-500.0,0.00021917,2]
[315930845,1709289044544,-1382.04,0.00021917,2]
[315930846,1709289044557,-156.70637461,0.00021917,2]
[315930847,1709289044566,-1001.81,0.00021917,2]
[315930848,1709289044576,-658.04,0.00021917,2]
[315930849,1709289044586,-617.75,0.00021917,2]
[315930850,1709289044595,-500.0,0.00021917,2]
[315930851,1709289044604,-500.0,0.00021917,2]
[315930852,1709289044614,-500.0,0.00021917,2]
[315930853,1709289044623,-822.4,0.00021917,2]
[315930854,1709289044633,-500.0,0.00021917,2]
[315930855,1709289044643,-1216.01,0.00021917,2]
[315930856,1709289044652,-500.0,0.00021917,2]
[315930857,1709289044661,-3968.09,0.00021917,2]
[315930858,1709289044672,-2001.55,0.00021917,2]
[315930859,1709289044681,-506.07423697,0.00021917,2]
[315930860,1709289044690,-500.0,0.00021917,2]
[315930861,1709289044700,-500.0,0.00021917,2]
[315930862,1709289044709,-500.0,0.00021917,2]
[315930863,1709289044718,-2096.04,0.00021917,2]
[315930864,1709289044729,-380.7326227,0.00021917,2]
[315930865,1709289044738,-500.0,0.00021917,2]
[315930866,1709289044748,-500.0,0.00021917,2]
[315930867,1709289044757,-1841.67,0.00021917,2]
[315930868,1709289044767,-500.0,0.00021917,2]
[315930869,1709289044776,-1315.18,0.00021917,2]
[315930870,1709289044786,-572.96,0.00021917,2]
[315930871,1709289044795,-2428.45,0.00021917,2]
[315930872,1709289044805,-560.96,0.00021917,2]
[315930873,1709289044814,-656.83,0.00021917,2]
[315930874,1709289044824,-21040.36,0.00021917,2]
[315930875,1709289044833,-836.88,0.00021917,2]
[315930876,1709289044842,-500.0,0.00021917,2]
[315930877,1709289044851,-1458.86,0.00021917,2]
[315930878,1709289044861,-500.0,0.00021917,2]
[315930879,1709289044870,-707.98,0.00021917,2]
[315930880,1709289044879,-668.31,0.00021917,2]
[315930881,1709289044889,-1967.61,0.00021917,2]
[315930882,1709289044898,-1703.32,0.00021917,2]
[315930883,1709289044908,-1087.47,0.00021917,2]
[315930884,1709289044919,-768.66,0.00021917,2]
[315930885,1709289044928,-500.0,0.00021917,2]
[315930886,1709289044937,-500.0,0.00021917,2]
[315930887,1709289044947,-500.0,0.00021917,2]
[315930888,1709289044957,-500.0,0.00021917,2]
[315930889,1709289044966,-500.0,0.00021917,2]
[315930890,1709289044975,-550.13,0.00021917,2]
[315930891,1709289044985,-1507.82,0.00021917,2]
[315930892,1709289044994,-500.0,0.00021917,2]
[315930893,1709289045003,-1780.24,0.00021917,2]
[315930894,1709289045012,-536.22,0.00021917,2]
[315930895,1709289045022,-1371.53,0.00021917,2]
[315930896,1709289045031,-1127.4,0.00021917,2]
[315930897,1709289045041,-615.31,0.00021917,2]
[315930898,1709289045051,-503.34759195,0.00021917,2]
[315930899,1709289045061,-4035.05,0.00021917,2]
[315930900,1709289045070,-1006.24,0.00021917,2]
[315930901,1709289045079,-568.09282986,0.00021917,2]
[315930902,1709289045089,-500.0,0.00021917,2]
[315930903,1709289045098,-500.0,0.00021917,2]
[315930904,1709289045109,-3427.77,0.00021917,2]
[315930905,1709289045118,-500.0,0.00021917,2]
[315930906,1709289045128,-500.0,0.00021917,2]
[315930907,1709289045137,-626.47,0.00021917,2]
[315930908,1709289045146,-500.0,0.00021917,2]
[315930909,1709289045156,-1707.88,0.00021917,2]
[315930910,1709289045165,-500.0,0.00021917,2]
[315930911,1709289045176,-500.0,0.00021917,2]
[315930912,1709289045185,-500.0,0.00021917,2]
[315930913,1709289045194,-643.41,0.00021917,2]
[315930914,1709289045204,-500.0,0.00021917,2]
[315930915,1709289045213,-500.0,0.00021917,2]
[315930916,1709289045223,-2325.72,0.00021917,2]
[315930917,1709289045235,-696.46,0.00021917,2]
[315930918,1709289045246,-500.0,0.00021917,2]
[315930919,1709289045256,-500.0,0.00021917,2]
[315930920,1709289045265,-3039.96,0.00021917,2]
[315930921,1709289045274,-780.16,0.00021917,2]
[315930922,1709289045283,-506.26,0.00021917,2]
[315930923,1709289045293,-1832.73,0.00021917,2]
[315930924,1709289045302,-813.96,0.00021917,2]
[315930925,1709289045312,-500.0,0.00021917,2]
[315930926,1709289045321,-500.0,0.00021917,2]
[315930927,1709289045330,-500.0,0.00021917,2]
[315930928,1709289045340,-500.0,0.00021917,2]
[315930929,1709289045349,-530.37,0.00021917,2]
[315930930,1709289045359,-1581.1,0.00021917,2]
[315930931,1709289045367,-500.0,0.00021917,2]
[315930932,1709289045376,-9320.1,0.00021917,2]
[315930933,1709289045386,-500.0,0.00021917,2]
[315930934,1709289045395,-1541.52,0.00021917,2]
[315930935,1709289045404,-500.0,0.00021917,2]
[315930936,1709289045414,-500.0,0.00021917,2]
[315930938,1709289045425,-1219.5,0.00021917,2]
[315930940,1709289045435,-500.0,0.00021917,2]
[315930942,1709289045443,-500.0,0.00021917,2]
[315930943,1709289045453,-656.77,0.00021917,2]
[315930944,1709289045462,-500.0,0.00021917,2]
[315930945,1709289045471,-3544.66,0.00021917,2]
[315930946,1709289045481,-967.65,0.00021917,2]
[315930947,1709289045490,-500.0,0.00021917,2]
[315930948,1709289045500,-449.27,0.00021917,2]
[315930949,1709289045510,-500.0,0.00021917,2]
[315930950,1709289045519,-754.01,0.00021917,2]
[315930951,1709289045529,-754.01,0.00021917,2]
[315930952,1709289045539,-193.53263688,0.00021917,2]
[315930953,1709289045549,-1160.25,0.00021917,2]
[315930954,1709289045559,-500.0,0.00021917,2]
[315930955,1709289045568,-850.09,0.00021917,2]
[315930956,1709289045578,-500.0,0.00021917,2]
[315930957,1709289045587,-1759.35,0.00021917,2]
[315930959,1709289045597,-500.0,0.00021917,2]
[315930961,1709289045606,-1688.37,0.00021917,2]
[315930963,1709289045615,-500.0,0.00021917,2]
[315930965,1709289045626,-500.0,0.00021917,2]
[315930967,1709289045635,-606.74,0.00021917,2]
[315930968,1709289045647,-500.0,0.00021917,2]
[315930969,1709289045656,-500.61,0.00021917,2]
[315930970,1709289045665,-990.26,0.00021917,2]
[315930971,1709289045677,-938.73,0.00021917,2]
[315930972,1709289045686,-1156.8,0.00021917,2]
[315930973,1709289045696,-505.77415602,0.00021917,2]
[315930974,1709289045705,-554.62,0.00021917,2]
[315930975,1709289045715,-500.0,0.00021917,2]
[315930976,1709289045724,-500.0,0.00021917,2]
[315930977,1709289045733,-866.31,0.00021917,2]
[315930978,1709289045743,-500.0,0.00021917,2]
[315930979,1709289045753,-4159.79,0.00021917,2]
[315930980,1709289045762,-626.07,0.00021917,2]
[315930981,1709289045771,-500.0,0.00021917,2]
[315930982,1709289045781,-500.0,0.00021917,2]
[315930983,1709289045790,-1382.78,0.00021917,2]
[315930984,1709289045799,-2155.6,0.00021917,2]
[315930985,1709289045809,-662.13,0.00021917,2]
[315930986,1709289045819,-3139.94,0.00021917,2]
[315930987,1709289045828,-667.63,0.00021917,2]
[315930988,1709289045839,-648.18,0.00021917,2]
[315930989,1709289045848,-500.0,0.00021917,2]
[315930990,1709289045858,-500.0,0.00021917,2]
[315930991,1709289045867,-500.0,0.00021917,2]
[315930992,1709289045876,-2335.42,0.00021917,2]
[315930993,1709289045885,-500.0,0.00021917,2]
[315930994,1709289045895,-773.52,0.00021917,2]
[315930995,1709289045904,-500.0,0.00021917,2]
[315930996,1709289045915,-1845.81,0.00021917,2]
[315930997,1709289045925,-500.0,0.00021917,2]
[315930998,1709289045934,-846.35,0.00021917,2]
[315930999,1709289045944,-1452.8,0.00021917,2]
[315931000,1709289045953,-703.51,0.00021917,2]
[315931001,1709289045962,-500.0,0.00021917,2]
[315931002,1709289045971,-500.0,0.00021917,2]
[315931003,1709289045981,-1280.71,0.00021917,2]
[315931004,1709289045989,-500.0,0.00021917,2]
[315931005,1709289045998,-500.0,0.00021917,2]
[315931006,1709289046007,-500.0,0.00021917,2]
[315931007,1709289046016,-500.0,0.00021917,2]
[315931008,1709289046025,-840.94,0.00021917,2]
[315931009,1709289046035,-484.38,0.00021917,2]
[315931010,1709289046044,-500.0,0.00021917,2]
[315931011,1709289046052,-803.1,0.00021917,2]
[315931012,1709289046062,-1154.67,0.00021917,2]
[315931013,1709289046071,-714.67,0.00021917,2]
[315931014,1709289046081,-686.36,0.00021917,2]
[315931015,1709289046090,-500.0,0.00021917,2]
[315931016,1709289046099,-697.03,0.00021917,2]
[315931017,1709289046108,-500.0,0.00021917,2]
[315931018,1709289046118,-500.0,0.00021917,2]
[315931019,1709289046127,-782.42,0.00021917,2]
[315931020,1709289046137,-500.0,0.00021917,2]
[315931021,1709289046146,-1854.4,0.00021917,2]
[315931022,1709289046155,-1446.42,0.00021917,2]
[315931023,1709289046164,-1727.57,0.00021917,2]
[315931024,1709289046176,-675.56,0.00021917,2]
[315931025,1709289046186,-500.0,0.00021917,2]
[315931026,1709289046196,-500.0,0.00021917,2]
[315931027,1709289046206,-1322.55,0.00021917,2]
[315931028,1709289046216,-835.37,0.00021917,2]
[315931029,1709289046225,-902.62,0.00021917,2]
[315931030,1709289046235,-500.0,0.00021917,2]
[315931031,1709289046245,-3453.65,0.00021917,2]
[315931032,1709289046255,-500.0,0.00021917,2]
[315931033,1709289046264,-500.0,0.00021917,2]
[315931034,1709289046274,-500.0,0.00021917,2]
[315931035,1709289046284,-500.0,0.00021917,2]
[315931036,1709289046294,-2720.5,0.00021917,2]
[315931037,1709289046304,-979.46,0.00021917,2]
[315931038,1709289046313,-500.0,0.00021917,2]
[315931039,1709289046323,-500.0,0.00021917,2]
[315931040,1709289046333,-561.39,0.00021917,2]
[315931041,1709289046343,-892.89,0.00021917,2]
[315931042,1709289046353,-629.61,0.00021917,2]
[315931043,1709289046362,-500.0,0.00021917,2]
[315931044,1709289046372,-500.0,0.00021917,2]
[315931045,1709289046381,-500.0,0.00021917,2]
[315931046,1709289046391,-4456.03,0.00021917,2]
[315931047,1709289046401,-500.0,0.00021917,2]
[315931048,1709289046410,-500.0,0.00021917,2]
[315931049,1709289046422,-1086.51,0.00021917,2]
[315931050,1709289046431,-932.75,0.00021917,2]
[315931051,1709289046441,-500.0,0.00021917,2]
[315931052,1709289046452,-679.0,0.00021917,2]
[315931053,1709289046461,-7093.49906384,0.00021917,2]
[315931054,1709289046533,-760.01039041,0.00021917,2]
[315931055,1709289046549,-738.70204546,0.00021917,2]
[315931056,1709289046704,-668.16681472,0.00021917,2]
[315931057,1709289046726,-402.71168557,0.00021917,2]
[315931058,1709289046735,-646.56,0.00021917,2]
[315931059,1709289046745,-500.0,0.00021917,2]
[315931060,1709289046755,-1647.88,0.00021917,2]
[315931061,1709289046765,-3743.78,0.00021917,2]
[315931062,1709289046775,-955.14,0.00021917,2]
[315931063,1709289046785,-154.88130864,0.00021917,2]
[315931064,1709289046797,-1415.55102347,0.00021917,2]
[315931065,1709289046927,-630.36829734,0.00021917,2]
[315931066,1709289046940,-4822.39937055,0.00021917,2]
[315931067,1709289046950,-83.37709133,0.00021917,2]
[315931068,1709289046961,-293.46625355,0.00021917,2]
[315931069,1709289046974,-1178.19665512,0.00021917,2]
[315931070,1709289046983,-907.63,0.00021917,2]
[315931071,1709289046992,-946.84,0.00021917,2]
[315931072,1709289047002,-832.6,0.00021917,2]
[315931073,1709289047011,-251.30671775,0.00021917,2]
[315931074,1709289047021,-6974.65,0.00021917,2]
[315931075,1709289047031,-575.91,0.00021917,2]
[315931076,1709289047041,-500.0,0.00021917,2]
[315931077,1709289047050,-500.0,0.00021917,2]
[315931078,1709289047060,-586.43,0.00021917,2]
[315931079,1709289047069,-500.0,0.00021917,2]
[315931080,1709289047079,-1732.8,0.00021917,2]
[315931081,1709289047089,-500.0,0.00021917,2]
[315931082,1709289047099,-500.0,0.00021917,2]
[315931083,1709289047109,-998.61,0.00021917,2]
[315931084,1709289047119,-539.12,0.00021917,2]
[315931085,1709289047128,-500.0,0.00021917,2]
[315931086,1709289047138,-500.0,0.00021917,2]
[315931087,1709289047148,-988.31,0.00021917,2]
[315931088,1709289047158,-480.06745475,0.00021917,2]
[315931089,1709289047169,-500.0,0.00021917,2]
[315931090,1709289047179,-780.49,0.00021917,2]
[315931091,1709289047189,-500.0,0.00021917,2]
[315931092,1709289047199,-500.0,0.00021917,2]
[315931093,1709289047210,-13566.37,0.00021917,2]
[315931094,1709289047222,-628.74,0.00021917,2]
[315931095,1709289047232,-500.0,0.00021917,2]
[315931096,1709289047242,-200.0,0.00021917,2]
[315931097,1709289047252,-500.0,0.00021917,2]
[315931098,1709289047262,-500.0,0.00021917,2]
[315931099,1709289047272,-2376.56,0.00021917,2]
[315931100,1709289047282,-581.03,0.00021917,2]
[315931101,1709289047292,-1376.73,0.00021917,2]
[315931102,1709289047303,-956.18,0.00021917,2]
[315931103,1709289047314,-500.0,0.00021917,2]
[315931104,1709289047324,-500.0,0.00021917,2]
[315931105,1709289047334,-563.44077253,0.00021917,2]
[315931106,1709289047344,-508.41,0.00021917,2]
[315931107,1709289047355,-1176.7,0.00021917,2]
[315931108,1709289047365,-500.0,0.00021917,2]
[315931109,1709289047375,-500.0,0.00021917,2]
[315931110,1709289047384,-603.94,0.00021917,2]
[315931111,1709289047395,-645.8,0.00021917,2]
[315931112,1709289047405,-500.0,0.00021917,2]
[315931113,1709289047415,-500.0,0.00021917,2]
[315931114,1709289047427,-572.85,0.00021917,2]
[315931115,1709289047438,-500.0,0.00021917,2]
[315931116,1709289047449,-6299.03,0.00021917,2]
[315931117,1709289047459,-500.0,0.00021917,2]
[315931118,1709289047469,-500.0,0.00021917,2]
[315931119,1709289047479,-500.0,0.00021917,2]
[315931120,1709289047490,-506.24554837,0.00021917,2]
[315931121,1709289047500,-547.13,0.00021917,2]
[315931122,1709289047511,-870.38,0.00021917,2]
[315931123,1709289047522,-913.93,0.00021917,2]
[315931124,1709289047533,-509.69578783,0.00021917,2]
[315931125,1709289047543,-500.0,0.00021917,2]
[315931126,1709289047556,-648.25,0.00021917,2]
[315931127,1709289047566,-158.62,0.00021918,2]
[315931128,1709289047576,-156.93,0.00021918,2]
[315931129,1709289047587,-153.09,0.00021918,2]
[315931130,1709289047598,-1676.74,0.00021918,2]
[315931131,1709289047609,-870.5820798,0.00021965,2]
[315931132,1709289047621,-164.79622058,0.00021991,2]
[315931133,1709289047633,-611.9,0.00021999,2]
[315931134,1709289047645,-777.63,0.00021999,2]
[315931135,1709289047656,-567.97,0.00021999,2]
[315931136,1709289047668,-741.14,0.00021999,2]
[315931137,1709289047680,-2349.13,0.00021999,2]
[315931138,1709289047690,-12919.58,0.00021999,2]
[315931139,1709289047700,-1606.36,0.00021999,2]
[315931140,1709289047710,-500.0,0.00021999,2]
[315931141,1709289047720,-754.01,0.00021999,2]
[315931142,1709289047731,-131713.86964669,0.00022,4]
[315931143,1709289047742,-66279.40890274,0.00022,2]
[315931144,1709289047753,-20678.16799668,0.00022,2]
[315931145,1709289047765,-3404.56229368,0.00022,2]
[315931146,1709289047775,-349361.9998171,0.00022,2]
[315931147,1709289047785,-4000.0,0.00022,2]
[315931148,1709289047795,-158.62,0.00022033,2]
[315931149,1709289047806,-200.0,0.00022041,2]
[315931150,1709289047816,-712.70784811,0.00022055,2]
[315931151,1709289047826,-131462.69346436,0.0002208,2]
[315931152,1709289047836,-1414.9631,0.00022091,2]
[315931153,1709289047846,-754.01,0.00022099,2]
[315931154,1709289047856,-8991.269256,0.000221,2]
[315931155,1709289047866,-158.62,0.00022149,2]
[315931156,1709289047876,-200.0,0.00022149,2]
[315931157,1709289047886,-800.0,0.00022149,2]
[315931158,1709289047895,-200.0,0.00022149,2]
[315931159,1709289047905,-500.0,0.00022149,2]
[315931160,1709289047917,-200.0,0.00022149,2]
[315931161,1709289047927,-156.93,0.00022161,2]
[315931162,1709289047937,-800.0,0.00022164,2]
[315931163,1709289047947,-207.0,0.00022173,2]
[315931164,1709289047957,-251.81,0.00022181,3]
[315931165,1709289047968,-184.60715767,0.00022189,2]
[315931166,1709289047978,-322.38978863,0.0002219,2]
[315931167,1709289047987,-495.05870837,0.0002219,2]
[315931168,1709289047997,-937.4279361,0.0002219,2]
[315931169,1709289048007,-754.01,0.0002219,2]
[315931170,1709289048017,-1384.0,0.0002219,2]
[315931171,1709289048026,-178.0,0.0002219,2]
[315931172,1709289048036,-500.0,0.00022191,20]
[315931173,1709289048046,-1471.38350424,0.00022191,2]
[315931174,1709289048057,-2000.0,0.00022191,2]
[315931175,1709289048066,-200.0,0.00022191,2]
[315931176,1709289048075,-500.0,0.00022191,2]
[315931177,1709289048086,-500.0,0.00022191,2]
[315931178,1709289048095,-500.0,0.00022191,2]
[315931179,1709289048105,-500.0,0.00022191,2]
[315931180,1709289048115,-500.0,0.00022191,2]
[315931181,1709289048125,-500.0,0.00022191,2]
[315931182,1709289048136,-500.0,0.00022191,2]
[315931183,1709289048146,-500.0,0.00022191,2]
[315931184,1709289048156,-500.0,0.00022191,2]
[315931185,1709289048166,-500.0,0.00022191,2]
[315931186,1709289048177,-500.0,0.00022191,2]
[315931187,1709289048187,-500.0,0.00022191,2]
[315931188,1709289048198,-500.0,0.00022191,2]
[315931189,1709289048207,-500.0,0.00022191,2]
[315931190,1709289048217,-535.39,0.00022191,2]
[315931191,1709289048228,-500.0,0.00022191,2]
[315931192,1709289048238,-500.0,0.00022191,2]
[315931193,1709289048248,-500.0,0.00022191,2]
[315931194,1709289048257,-500.0,0.00022191,2]
[315931195,1709289048268,-500.0,0.00022191,2]
[315931196,1709289048278,-522.62590935,0.00022191,2]
[315931197,1709289048288,-500.0,0.00022191,2]
[315931198,1709289048297,-500.0,0.00022191,2]
[315931199,1709289048307,-550.95,0.00022191,2]
[315931200,1709289048317,-500.0,0.00022191,2]
[315931201,1709289048327,-500.0,0.00022191,2]
[315931202,1709289048338,-500.0,0.00022191,2]
[315931203,1709289048348,-500.0,0.00022191,2]
[315931204,1709289048358,-500.0,0.00022191,2]
[315931205,1709289048598,-500.0,0.00022191,2]
[315931206,1709289048650,-500.0,0.00022191,2]
[315931207,1709289048660,-500.0,0.00022191,2]
[315931208,1709289048671,-500.0,0.00022191,2]
[315931209,1709289048680,-500.0,0.00022191,2]
[315931210,1709289048690,-500.0,0.00022191,2]
[315931211,1709289048699,-500.0,0.00022191,2]
[315931212,1709289048708,-637.51,0.00022191,2]
[315931213,1709289048718,-500.0,0.00022191,2]
[315931214,1709289048727,-500.0,0.00022191,2]
[315931215,1709289048736,-517.63386094,0.00022191,2]
[315931216,1709289048746,-500.0,0.00022191,2]
[315931217,1709289048755,-500.0,0.00022191,2]
[315931218,1709289048764,-515.3138714,0.00022191,2]
[315931219,1709289048774,-500.0,0.00022191,2]
[315931220,1709289048784,-500.0,0.00022191,2]
[315931221,1709289048795,-500.0,0.00022191,2]
[315931222,1709289048805,-500.0,0.00022191,2]
[315931223,1709289048814,-500.0,0.00022191,2]
[315931224,1709289048824,-500.0,0.00022191,2]
[315931225,1709289048833,-514.23,0.00022191,2]
[315931226,1709289048844,-200.0,0.00022191,2]
[315931227,1709289048853,-500.0,0.00022191,2]
[315931228,1709289048863,-623.0310079,0.00022191,2]
[315931229,1709289048872,-1186.16,0.00022191,2]
[315931230,1709289048882,-502.75819636,0.00022191,2]
[315931231,1709289048891,-507.24460112,0.00022191,2]
[315931232,1709289048901,-618.1,0.00022191,2]
[315931233,1709289048910,-493.28641568,0.00022191,2]
[315931234,1709289048921,-500.0,0.00022191,2]
[315931235,1709289048930,-500.0,0.00022191,2]
[315931236,1709289048940,-701.08,0.00022191,2]
[315931237,1709289048949,-500.0,0.00022191,2]
[315931238,1709289048958,-500.0,0.00022191,2]
[315931239,1709289048967,-500.0,0.00022191,2]
[315931240,1709289048976,-500.0,0.00022191,2]
[315931241,1709289048986,-500.0,0.00022191,2]
[315931242,1709289048995,-500.0,0.00022191,2]
[315931243,1709289049004,-500.0,0.00022191,2]
[315931244,1709289049014,-500.0,0.00022191,2]
[315931245,1709289049023,-791.83,0.00022191,2]
[315931246,1709289049032,-500.0,0.00022191,2]
[315931247,1709289049041,-925.2,0.00022191,2]
[315931248,1709289049051,-500.0,0.00022191,2]
[315931249,1709289049060,-983.45,0.00022191,2]
[315931250,1709289049069,-500.0,0.00022191,2]
[315931251,1709289049078,-500.0,0.00022191,2]
[315931252,1709289049087,-580.61,0.00022191,2]
[315931253,1709289049096,-500.0,0.00022191,2]
[315931254,1709289049105,-500.0,0.00022191,2]